fUST/lending_fUST_20240520
["ID","MTS","AMOUNT","RATE_DAILY","PERIOD"]
[327510185,1716139841579,-500.0,0.00043835,30]
[327510186,1716139841588,-475.72,0.00043835,30]
[327510187,1716139841600,-500.0,0.00043835,30]
[327510188,1716139841610,-500.0,0.00043835,30]
[327510189,1716139841619,-607.81,0.00043835,30]
[327510190,1716139841628,-500.0,0.00043835,30]
[327510191,1716139841638,-500.0,0.00043835,30]
[327510192,1716139841648,-500.0,0.00043835,30]
[327510193,1716139841657,-1291.48,0.00043835,30]
[327510194,1716139841667,-500.44713499,0.00043835,30]
[327510195,1716139841676,-500.0,0.00043835,30]
[327510196,1716139841685,-151.0,0.00043835,7]
[327510197,1716139841695,-151.0,0.00043835,7]
[327510198,1716139841704,-500.0,0.00043835,30]
[327510199,1716139841714,-501.03148732,0.00043835,30]
[327510200,1716139841723,-500.0,0.00043835,30]
[327510201,1716139841733,-500.0,0.00043835,30]
[327510202,1716139841742,-500.0,0.00043835,30]
[327510203,1716139841751,-500.0,0.00043835,30]
[327510204,1716139841761,-500.0,0.00043835,30]
[327510205,1716139841770,-151.0,0.00043835,7]
[327510206,1716139841779,-151.0,0.00043835,7]
[327510207,1716139841789,-501.25720095,0.00043835,30]
[327510208,1716139841798,-500.0,0.00043835,30]
[327510209,1716139841808,-384.96968369,0.00043835,30]
[327510210,1716139841818,-5356.34,0.00043835,30]
[327510211,1716139841828,-500.0,0.00043835,30]
[327510212,1716139841837,-151.0,0.00043835,7]
[327510213,1716139841847,-151.0,0.00043835,7]
[327510214,1716139841857,-502.15949804,0.00043835,30]
[327510215,1716139841867,-596.86528411,0.00043835,30]
[327510216,1716139841876,-500.0,0.00043835,30]
[327510217,1716139841886,-449.71,0.00043835,30]
[327510218,1716139841896,-668.64,0.00043835,30]
[327510219,1716139841905,-547.6346554,0.00043835,30]
[327510220,1716139841914,-500.0,0.00043835,30]
[327510221,1716139841923,-500.0,0.00043835,30]
[327510222,1716139841933,-500.0,0.00043835,30]
[327510223,1716139841942,-500.0,0.00043835,30]
[327510224,1716139841951,-500.0,0.00043835,30]
[327510225,1716139841961,-500.0,0.00043835,30]
[327510226,1716139841970,-223.23841115,0.00043835,30]
[327510227,1716139841980,-500.0,0.00043835,30]
[327510228,1716139841989,-225.54608819,0.00043835,30]
[327510229,1716139841999,-573.52157402,0.00043835,30]
[327510230,1716139842008,-500.0,0.00043835,30]
[327510231,1716139842017,-500.0,0.00043835,30]
[327510232,1716139842027,-500.0,0.00043835,30]
[327510233,1716139842036,-500.0,0.00043835,30]
[327510234,1716139842045,-484.70032344,0.00043835,30]
[327510235,1716139842054,-500.0,0.00043835,30]
[327510236,1716139842063,-500.0,0.00043835,30]
[327510237,1716139842072,-1257.01,0.00043835,30]
[327510238,1716139842082,-500.0,0.00043835,30]
[327510239,1716139842091,-324.34,0.00043835,30]
[327510240,1716139842101,-521.04340065,0.00043835,30]
[327510241,1716139842110,-500.63189249,0.00043835,30]
[327510242,1716139842120,-500.0,0.00043835,30]
[327510243,1716139842129,-500.0,0.00043835,30]
[327510244,1716139842139,-379.613549,0.00043835,7]
[327510245,1716139842148,-379.613549,0.00043835,7]
[327510246,1716139842158,-500.0,0.00043835,21]
[327510247,1716139842167,-500.0,0.00043835,30]
[327510248,1716139842176,-379.613549,0.00043835,7]
[327510249,1716139842186,-379.613549,0.00043835,7]
[327510250,1716139842195,-581.33,0.00043835,30]
[327510251,1716139842205,-402.52654912,0.00043835,30]
[327510252,1716139842214,-547.87,0.00043835,30]
[327510253,1716139842223,-4647.17,0.00043835,30]
[327510254,1716139842232,-500.0,0.00043835,30]
[327510255,1716139842242,-500.0,0.00043835,30]
[327510256,1716139842251,-274.747268,0.00043835,7]
[327510257,1716139842260,-274.747268,0.00043835,7]
[327510258,1716139842270,-274.747268,0.00043835,7]
[327510259,1716139842279,-274.747268,0.00043835,7]
[327510260,1716139842288,-500.0,0.00043835,30]
[327510261,1716139842298,-404.240044,0.00043835,7]
[327510262,1716139842307,-404.240044,0.00043835,7]
[327510263,1716139842318,-500.0,0.00043835,30]
[327510264,1716139842327,-404.240044,0.00043835,7]
[327510265,1716139842336,-404.240044,0.00043835,7]
[327510266,1716139842346,-158.89402729,0.00043835,30]
[327510267,1716139842355,-500.0,0.00043835,30]
[327510268,1716139842365,-500.0,0.00043835,30]
[327510269,1716139842374,-500.0,0.00043835,30]
[327510270,1716139842383,-1086.2,0.00043835,30]
[327510271,1716139842393,-500.0,0.00043835,30]
[327510272,1716139842402,-500.0,0.00043835,30]
[327510273,1716139842411,-397.6,0.00043835,30]
[327510274,1716139842421,-9336.32,0.00043835,30]
[327510275,1716139842430,-500.0,0.00043835,30]
[327510276,1716139842440,-500.0,0.00043835,30]
[327510277,1716139842449,-834.75,0.00043835,30]
[327510278,1716139842459,-340.98312254,0.00043835,30]
[327510279,1716139842473,-171.68687746,0.00043835,30]
[327510280,1716139842484,-500.0,0.00043835,30]
[327510281,1716139842494,-500.0,0.00043835,30]
[327510282,1716139842503,-500.0,0.00043835,30]
[327510283,1716139842512,-402.45868732,0.00043835,30]
[327510364,1716139846783,-97.54131268,0.00043835,30]
[327510365,1716139846793,-500.0,0.00043835,30]
[327510366,1716139846803,-500.0,0.00043835,30]
[327510367,1716139846812,-500.0,0.00043835,31]
[327510368,1716139846824,-500.0,0.00043835,32]
[327510369,1716139846833,-500.0,0.00043835,33]
[327510370,1716139846843,-500.0,0.00043835,34]
[327510371,1716139846852,-500.0,0.00043835,35]
[327510372,1716139846862,-500.0,0.00043835,36]
[327510373,1716139846871,-500.0,0.00043835,37]
[327510374,1716139846890,-500.0,0.00043835,38]
[327510375,1716139846901,-500.0,0.00043835,30]
[327510376,1716139846910,-500.0,0.00043835,30]
[327510377,1716139846920,-500.0,0.00043835,30]
[327510378,1716139846929,-151.0,0.00043835,7]
[327510379,1716139846939,-1.56468732,0.00043835,7]
[327510380,1716139846952,-149.43531268,0.00043835,7]
[327510381,1716139847083,-500.0,0.00043835,30]
[327510382,1716139847093,-1237.67,0.00043835,30]
[327510383,1716139847103,-161.46119441,0.0004384,3]
[327510384,1716139847112,-500.0,0.00043863,60]
[327510385,1716139847121,-151.0,0.00043909,7]
[327510386,1716139847130,-151.0,0.00043909,7]
[327510387,1716139847140,-163.503808,0.00043909,7]
[327510388,1716139847149,-379.613549,0.00043909,7]
[327510389,1716139847158,-161.31613591,0.00043909,7]
[327510390,1716139881883,167.30851839,9.999e-05,2]
[327510392,1716139900684,154.82968734,9.999e-05,2]
[327510462,1716139920689,154.82968734,9.999e-05,2]
[327510524,1716140704124,330.99770388,9.999e-05,2]
[327510721,1716141038152,-395.27135624,0.00016398,2]
[327510722,1716141038162,-330.4742359,0.00016398,2]
[327510723,1716141038171,-154.84515485,0.00016399,2]
[327510725,1716141038181,-11054.76838849,0.00016399,2]
[327510727,1716141038190,-34969.70322577,0.000164,2]
[327510743,1716141040309,-28437.82563121,0.000164,2]
[327510944,1716141046003,-3237.07792439,0.000164,2]
[327510947,1716141046118,-282.5,0.000164,2]
[327510949,1716141046130,-20700.80795671,0.000164,2]
[327510951,1716141046140,-3523.57488527,0.00016768,2]
[327510953,1716141046152,-10500.0,0.00016768,2]
[327510955,1716141046163,-261.81,0.00016768,2]
[327511408,1716142232313,-2245.61145002,0.00016529,2]
[327511411,1716142232324,-1975.84856997,0.00016529,2]
[327511412,1716142232335,-150.0,0.00016546,2]
[327511413,1716142232347,-416.98047207,0.00016577,2]
[327511414,1716142232357,-333.82769809,0.00016765,2]
[327511415,1716142232366,-185.79813627,0.00016766,2]
[327511416,1716142232375,-696.57862006,0.00016766,2]
[327511417,1716142232384,-839.76278684,0.00016767,2]
[327511418,1716142232395,-2080.2037167,0.00016767,2]
[327511446,1716142238422,-1039.55962715,0.00016767,2]
[327511512,1716142240468,-96.08970444,0.00016767,2]
[327511513,1716142240477,-1336.19553815,0.00016767,2]
[327511846,1716142246373,-1562.84300676,0.00016767,2]
[327511847,1716142246386,-1971.09907496,0.00016767,2]
[327511848,1716142246396,-5324.27593138,0.00017658,2]
[327511849,1716142246407,-872.21217427,0.00017658,2]
[327511850,1716142246423,-4378.12700905,0.00017658,2]
[327511851,1716142246433,-895.80593484,0.00018,2]
[327511852,1716142246443,-152.0207996,0.00018899,2]
[327511854,1716143206599,521.13198345,9.999e-05,2]
[327511923,1716143432529,-986.3587562,0.00018,2]
[327511925,1716143432539,-4221.46001999,0.00018375,2]
[327511927,1716143432548,-7118.18122381,0.00018469,2]
[327512210,1716143438594,-416.98047207,0.00018583,2]
[327512211,1716143438603,-1358.75960852,0.00018898,2]
[327512212,1716143438640,-5723.56713719,0.00018898,2]
[327512213,1716143438649,-2718.51929174,0.000189,2]
[327512214,1716143438658,-309.47389438,0.00019,2]
[327512215,1716143438667,-157.342908,0.00019178,2]
[327512216,1716143438676,-204.3998579,0.00019356,2]
[327512217,1716143438686,-204.3998579,0.00019356,2]
[327512218,1716143438695,-204.0487901,0.00019356,2]
[327512219,1716143438704,-4263.89939311,0.0002,3]
[327512220,1716143438713,-1270.0,0.0002,2]
[327512221,1716143438723,-150.0,0.0002026,3]
[327512222,1716143438732,-150.0,0.0002026,2]
[327512223,1716143438742,-178.98617747,0.00020805,2]
[327512224,1716143438751,-1106.37126726,0.00020899,2]
[327512225,1716143438760,-500.0,0.00020904,2]
[327512226,1716143438770,-500.0,0.00020904,2]
[327512227,1716143438784,-553.31667636,0.00020904,2]
[327512228,1716143438794,-283.01887991,0.00020904,2]
[327512229,1716143438803,-157.71717594,0.00020904,2]
[327512230,1716143438812,-500.0,0.00020904,2]
[327512231,1716143438823,-500.0,0.00020904,2]
[327512232,1716143438832,-500.0,0.00020904,2]
[327512233,1716143438841,-471.68734348,0.00020904,2]
[327512234,1716143438852,-500.0,0.00020904,2]
[327512235,1716143438861,-500.0,0.00020904,2]
[327512236,1716143438871,-500.0,0.00020904,2]
[327512237,1716143438880,-500.0,0.00020904,2]
[327512238,1716143438889,-500.0,0.00020904,2]
[327512239,1716143438898,-641.95364082,0.00020904,2]
[327512240,1716143438907,-500.0,0.00020904,2]
[327512241,1716143438916,-500.0,0.00020904,2]
[327512242,1716143438925,-500.0,0.00020904,2]
[327512243,1716143438935,-500.0,0.00020904,2]
[327512244,1716143438945,-250.0,0.00020904,2]
[327512245,1716143438954,-500.0,0.00020904,2]
[327512246,1716143438963,-500.0,0.00020904,2]
[327512247,1716143438972,-500.0,0.00020904,2]
[327512248,1716143438982,-500.0,0.00020904,2]
[327512249,1716143438991,-500.0,0.00020904,2]
[327512250,1716143439001,-500.0,0.00020904,2]
[327512251,1716143439010,-500.0,0.00020904,2]
[327512252,1716143439020,-500.0,0.00020904,2]
[327512253,1716143439030,-500.0,0.00020904,2]
[327512254,1716143439039,-500.0,0.00020904,2]
[327512255,1716143439050,-500.0,0.00020904,2]
[327512256,1716143439206,-500.0,0.00020904,2]
[327512257,1716143439218,-383.10067488,0.00020904,2]
[327512258,1716143439229,-500.0,0.00020904,2]
[327512259,1716143439238,-433.62020444,0.00020904,2]
[327512260,1716143439248,-500.0,0.00020904,2]
[327512261,1716143439258,-500.0,0.00020904,2]
[327512262,1716143439268,-500.0,0.00020904,2]
[327512263,1716143439277,-500.0,0.00020904,2]
[327512264,1716143439287,-500.0,0.00020904,2]
[327512265,1716143439297,-500.0,0.00020904,2]
[327512266,1716143439307,-500.0,0.00020904,2]
[327512267,1716143439316,-500.0,0.00020904,2]
[327512268,1716143439326,-500.0,0.00020904,2]
[327512269,1716143439336,-500.0,0.00020904,2]
[327512270,1716143439346,-500.0,0.00020904,2]
[327512271,1716143439356,-500.0,0.00020904,2]
[327512272,1716143439366,-500.0,0.00020904,2]
[327512273,1716143439375,-500.0,0.00020904,2]
[327512274,1716143439385,-500.0,0.00020904,2]
[327512275,1716143439395,-500.0,0.00020904,2]
[327512276,1716143439405,-500.0,0.00020904,2]
[327512277,1716143439415,-500.0,0.00020904,2]
[327512278,1716143439425,-500.0,0.00020904,2]
[327512279,1716143439435,-400.0,0.00020904,2]
[327512280,1716143439445,-500.0,0.00020904,2]
[327512281,1716143439455,-500.0,0.00020904,2]
[327512282,1716143439465,-500.0,0.00020904,2]
[327512283,1716143439474,-500.0,0.00020904,2]
[327512284,1716143439484,-500.0,0.00020904,2]
[327512285,1716143439494,-500.0,0.00020904,2]
[327512286,1716143439504,-500.0,0.00020904,2]
[327512287,1716143439514,-500.0,0.00020904,2]
[327512288,1716143439524,-500.0,0.00020904,2]
[327512289,1716143439533,-500.0,0.00020904,2]
[327512290,1716143439543,-500.0,0.00020904,2]
[327512291,1716143439554,-500.0,0.00020904,2]
[327512292,1716143439565,-500.0,0.00020904,2]
[327512293,1716143439575,-500.0,0.00020904,2]
[327512294,1716143439584,-500.0,0.00020904,2]
[327512295,1716143439593,-500.0,0.00020904,2]
[327512296,1716143439602,-500.0,0.00020904,2]
[327512297,1716143439611,-500.0,0.00020904,2]
[327512298,1716143439620,-500.0,0.00020904,2]
[327512299,1716143439629,-500.0,0.00020904,2]
[327512300,1716143439639,-500.0,0.00020904,2]
[327512301,1716143439648,-500.0,0.00020904,2]
[327512302,1716143439658,-500.0,0.00020904,2]
[327512303,1716143439667,-500.0,0.00020904,2]
[327512304,1716143439677,-318.46725583,0.00020904,2]
[327512305,1716143439687,-500.0,0.00020904,2]
[327512306,1716143439696,-500.0,0.00020904,2]
[327512307,1716143439706,-500.0,0.00020904,2]
[327512308,1716143439715,-500.0,0.00020904,2]
[327512309,1716143439724,-404.24270043,0.00020904,2]
[327512310,1716143439733,-500.0,0.00020904,2]
[327512311,1716143439743,-500.0,0.00020904,2]
[327512312,1716143439751,-500.0,0.00020904,2]
[327512313,1716143439760,-500.0,0.00020904,2]
[327512314,1716143439769,-500.0,0.00020904,2]
[327512315,1716143439784,-19.91966844,0.00020904,2]
[327512316,1716143439798,-480.08033156,0.00020904,2]
[327512317,1716143439808,-500.0,0.00020904,2]
[327512318,1716143439819,-218.52466844,0.00020904,2]
[327512319,1716143439830,-281.47533156,0.00020904,2]
[327512320,1716143439840,-151.0218413,0.00020904,2]
[327512344,1716143443707,-392.1959995,0.000189,2]
[327512348,1716143443898,-1420.150195,0.000189,2]
[327512350,1716143443907,-150.0,0.0002026,3]
[327512351,1716143443917,-348.9781587,0.00020904,2]
[327512353,1716143443926,-500.0,0.00020904,2]
[327512355,1716143443936,-500.0,0.00020904,2]
[327512357,1716143443946,-75.37361393,0.00020904,2]
[327512360,1716143443958,-424.62638607,0.00020904,2]
[327512362,1716143443967,-38.72885188,0.00020904,2]
[327512390,1716143444241,-461.27114812,0.00020904,2]
[327512392,1716143444250,-500.0,0.00020904,2]
[327512394,1716143444259,-500.0,0.00020904,2]
[327512396,1716143444269,-500.0,0.00020904,2]
[327512398,1716143444278,-500.0,0.00020904,2]
[327512400,1716143444287,-500.0,0.00020904,2]
[327512402,1716143444297,-500.0,0.00020904,2]
[327512404,1716143444307,-500.0,0.00020904,2]
[327512406,1716143444317,-500.0,0.00020904,2]
[327512408,1716143444326,-500.0,0.00020904,2]
[327512409,1716143444335,-431.54620274,0.00020904,2]
[327512412,1716143444345,-500.0,0.00020904,2]
[327512414,1716143444355,-500.0,0.00020904,2]
[327512415,1716143444365,-500.0,0.00020904,2]
[327512418,1716143444375,-500.0,0.00020904,2]
[327512419,1716143444384,-500.0,0.00020904,2]
[327512422,1716143444393,-500.0,0.00020904,2]
[327512424,1716143444403,-500.0,0.00020904,2]
[327512426,1716143444412,-500.0,0.00020904,2]
[327512428,1716143444422,-500.0,0.00020904,2]
[327512430,1716143444432,-500.0,0.00020904,2]
[327512431,1716143444442,-500.0,0.00020904,2]
[327512433,1716143444451,-500.0,0.00020904,2]
[327512436,1716143444460,-500.0,0.00020904,2]
[327512437,1716143444470,-500.0,0.00020904,2]
[327512440,1716143444480,-500.0,0.00020904,2]
[327512442,1716143444489,-500.0,0.00020904,2]
[327512444,1716143444499,-500.0,0.00020904,2]
[327512445,1716143444508,-689.90178801,0.00020904,2]
[327512448,1716143444517,-123.7182555,0.00020904,2]
[327512646,1716143446539,-371.03329235,0.00020804,2]
[327512649,1716143446549,-66.14973553,0.00020904,2]
[327512651,1716143446559,-1291.21785505,0.00020904,2]
[327512653,1716143446568,-239.4201,0.00020905,2]
[327512655,1716143446578,-239.4201,0.00020905,2]
[327512657,1716143446587,-228.81451,0.00020905,2]
[327512659,1716143446597,-151.0,0.00020905,2]
[327512661,1716143446606,-151.0,0.00020905,2]
[327512663,1716143446616,-12326.0,0.00020906,2]
[327512665,1716143446625,-151.0,0.00020906,2]
[327512667,1716143446634,-151.0,0.00020906,2]
[327512669,1716143446644,-151.0,0.00020906,2]
[327512671,1716143446653,-151.0,0.00020906,2]
[327512673,1716143446663,-151.0,0.00020906,2]
[327512675,1716143446672,-151.0,0.00020906,2]
[327512677,1716143446681,-367.082919,0.00020906,2]
[327512679,1716143446690,-367.082919,0.00020906,2]
[327512681,1716143446699,-367.082919,0.00020906,2]
[327512683,1716143446708,-367.082919,0.00020906,2]
[327512685,1716143446717,-436.768052,0.00020906,2]
[327512687,1716143446727,-436.768052,0.00020906,2]
[327512689,1716143446736,-436.768052,0.00020906,2]
[327512691,1716143446745,-436.768052,0.00020906,2]
[327512693,1716143446755,-239.4201,0.00020906,2]
[327512695,1716143446764,-239.4201,0.00020906,2]
[327512697,1716143446774,-151.0,0.00020906,2]
[327512699,1716143446786,-151.0,0.00020906,2]
[327512701,1716143446795,-62.20032224,0.00020907,2]
[327512703,1716143446807,-95.37082046,0.00020907,2]
[327512705,1716143446816,-151.0,0.00020907,2]
[327512707,1716143446826,-151.0,0.00020907,2]
[327512709,1716143446838,-89.87917954,0.00020907,2]
[327512711,1716143446850,-61.12082046,0.00020907,2]
[327512713,1716143446861,-151.0,0.00020907,2]
[327512716,1716143446871,-151.0,0.00020907,2]
[327512717,1716143446881,-151.0,0.00020907,2]
[327512719,1716143446891,-151.0,0.00020907,2]
[327512722,1716143446901,-46.87917954,0.00020907,2]
[327516225,1716144589755,1136.44476732,0.00014518,2]
[327516226,1716144598663,316.21456791,9.999e-05,2]
[327516227,1716144619413,154.82968734,9.999e-05,2]
[327516251,1716144632815,-771.97912263,0.00017422,2]
[327516252,1716144632824,-338.83294029,0.00017996,2]
[327516277,1716144638779,-1000.28501999,0.00017996,2]
[327516278,1716144638791,-658.93879695,0.00017996,2]
[327516308,1716144645328,-8452.96654313,0.00017996,2]
[327516312,1716144645339,-154.82968734,0.00017996,2]
[327516315,1716144645350,-3186.29282626,0.00017997,2]
[327516319,1716144645366,-1285.28424767,0.00017997,2]
[327516323,1716144645380,-10236.7596593,0.00017997,2]
[327516325,1716144645391,-6746.36678352,0.00017999,2]
[327516328,1716144645403,-1933.16927413,0.000189,2]
[327516330,1716144645414,-258.47654106,0.00019,2]
[327516332,1716144645423,-157.342908,0.00019178,2]
[327516334,1716144645433,-178.98617745,0.0001926,2]
[327516336,1716144645442,-324.65413085,0.00019262,2]
[327516338,1716144645452,-528.01,0.0001935,3]
[327516340,1716144645463,-264.01,0.0001935,3]
[327516343,1716144645473,-792.05,0.0001935,3]
[327516345,1716144645484,-294.16798662,0.00019357,2]
[327516347,1716144645495,-155.02628739,0.00019358,2]
[327516350,1716144645507,-2591.61103843,0.00019358,2]
[327516352,1716144645519,-309.55118864,0.00019358,2]
[327516354,1716144645530,-236.35488706,0.00019358,2]
[327516356,1716144645540,-1042.36309921,0.00019358,2]
[327516358,1716144645550,-493.67241298,0.00019358,2]
[327516360,1716144645560,-1402.22943905,0.00019358,2]
[327516363,1716144645572,-702.19428712,0.00019358,2]
[327516365,1716144645582,-690.19911136,0.00019358,2]
[327516367,1716144645593,-376.13150673,0.00019358,2]
[327516369,1716144645606,-272.01885997,0.00019358,2]
[327516372,1716144645619,-169.04819071,0.00019358,2]
[327516374,1716144645629,-238.38386751,0.00019358,2]
[327516376,1716144645639,-67.64259674,0.00019358,2]
[327516378,1716144645653,-2566.99508304,0.00019358,2]
[327516380,1716144645663,-207.40001478,0.00019358,2]
[327516383,1716144645674,-176.48287775,0.00019358,2]
[327516385,1716144645684,-155.20150353,0.00019358,2]
[327516387,1716144645695,-1087.84140931,0.00019358,2]
[327516389,1716144645706,-1766.69998441,0.00019358,2]
[327516391,1716144645716,-315.84028705,0.00019358,2]
[327516393,1716144645727,-1627.43391384,0.00019358,2]
[327516396,1716144645738,-638.81093448,0.00019358,2]
[327516399,1716144645748,-154.98428516,0.00019358,2]
[327516403,1716144645758,-616.82004414,0.00019358,2]
[327516406,1716144645769,-784.45755076,0.00019358,2]
[327516409,1716144645779,-237.13571844,0.00019359,2]
[327516412,1716144645790,-500.0,0.00019359,2]
[327516414,1716144645800,-500.0,0.00019359,2]
[327516416,1716144645810,-525.0,0.00019359,2]
[327516418,1716144645821,-500.0,0.00019359,2]
[327516421,1716144645831,-500.0,0.00019359,2]
[327516423,1716144645842,-500.0,0.00019359,2]
[327516425,1716144645852,-595.17000982,0.00019359,2]
[327516427,1716144645863,-500.0,0.00019359,2]
[327516429,1716144645874,-500.0,0.00019359,2]
[327516431,1716144645884,-500.0,0.00019359,2]
[327516433,1716144645894,-500.0,0.00019359,2]
[327516436,1716144645905,-595.17000982,0.00019359,2]
[327516438,1716144645915,-500.0,0.00019359,2]
[327516440,1716144645926,-500.0,0.00019359,2]
[327516442,1716144645936,-464.93020246,0.00019359,2]
[327516444,1716144645947,-500.0,0.00019359,2]
[327516447,1716144645959,-595.17000982,0.00019359,2]
[327516449,1716144645969,-500.0,0.00019359,2]
[327516451,1716144645979,-500.0,0.00019359,2]
[327516453,1716144645990,-500.0,0.00019359,2]
[327516455,1716144646000,-595.17000982,0.00019359,2]
[327516457,1716144646011,-500.0,0.00019359,2]
[327516459,1716144646021,-500.0,0.00019359,2]
[327516462,1716144646032,-595.17000982,0.00019359,2]
[327516464,1716144646043,-500.0,0.00019359,2]
[327516466,1716144646054,-575.75819491,0.00019359,2]
[327516468,1716144646065,-595.17000982,0.00019359,2]
[327516471,1716144646076,-500.0,0.00019359,2]
[327516487,1716144646210,-595.17000982,0.00019359,2]
[327516489,1716144646225,-500.0,0.00019359,2]
[327516491,1716144646235,-269.59373621,0.00019359,2]
[327516493,1716144646245,-500.0,0.00019359,2]
[327516495,1716144646254,-595.17000982,0.00019359,2]
[327516497,1716144646263,-500.0,0.00019359,2]
[327516499,1716144646272,-133.42299982,0.00019359,2]
[327516503,1716144646288,-461.74701,0.00019359,2]
[327516505,1716144646297,-500.0,0.00019359,2]
[327516507,1716144646306,-595.17000982,0.00019359,2]
[327516509,1716144646315,-500.0,0.00019359,2]
[327516511,1716144646324,-500.0,0.00019359,2]
[327516513,1716144646333,-595.17000982,0.00019359,2]
[327516515,1716144646342,-650.0,0.00019359,2]
[327516517,1716144646351,-595.17000982,0.00019359,2]
[327516519,1716144646361,-500.0,0.00019359,2]
[327516521,1716144646370,-500.0,0.00019359,2]
[327516523,1716144646379,-595.17000982,0.00019359,2]
[327516525,1716144646388,-595.17000982,0.00019359,2]
[327516527,1716144646398,-368.71858398,0.00019359,2]
[327516529,1716144646407,-500.0,0.00019359,2]
[327516531,1716144646416,-595.17000982,0.00019359,2]
[327516533,1716144646426,-500.0,0.00019359,2]
[327516535,1716144646435,-595.17000982,0.00019359,2]
[327516537,1716144646444,-500.0,0.00019359,2]
[327516539,1716144646454,-595.17000982,0.00019359,2]
[327516541,1716144646464,-500.0,0.00019359,2]
[327516543,1716144646473,-595.17000982,0.00019359,2]
[327516545,1716144646482,-500.0,0.00019359,2]
[327516547,1716144646491,-500.0,0.00019359,2]
[327516549,1716144646500,-562.4910115,0.00019359,2]
[327516551,1716144646510,-500.0,0.00019359,2]
[327516553,1716144646519,-595.17000982,0.00019359,2]
[327516555,1716144646529,-500.0,0.00019359,2]
[327516557,1716144646540,-500.0,0.00019359,2]
[327516559,1716144646549,-500.0,0.00019359,2]
[327516561,1716144646558,-500.0,0.00019359,2]
[327516563,1716144646568,-595.17000982,0.00019359,2]
[327516565,1716144646577,-500.0,0.00019359,2]
[327516566,1716144646587,-595.17000982,0.00019359,2]
[327516568,1716144646597,-500.0,0.00019359,2]
[327516570,1716144646606,-595.17000982,0.00019359,2]
[327516572,1716144646616,-500.0,0.00019359,2]
[327516574,1716144646626,-595.17000982,0.00019359,2]
[327516576,1716144646635,-500.0,0.00019359,2]
[327516578,1716144646645,-500.0,0.00019359,2]
[327516580,1716144646654,-595.17000982,0.00019359,2]
[327516582,1716144646663,-500.0,0.00019359,2]
[327516584,1716144646673,-500.0,0.00019359,2]
[327516586,1716144646682,-595.17000982,0.00019359,2]
[327516588,1716144646692,-500.0,0.00019359,2]
[327516590,1716144646701,-595.17000982,0.00019359,2]
[327516592,1716144646712,-500.0,0.00019359,2]
[327516594,1716144646721,-595.17000982,0.00019359,2]
[327516596,1716144646730,-595.17000982,0.00019359,2]
[327516598,1716144646739,-500.0,0.00019359,2]
[327516600,1716144646748,-500.0,0.00019359,2]
[327516602,1716144646758,-595.17000982,0.00019359,2]
[327516603,1716144646767,-500.0,0.00019359,2]
[327516605,1716144646776,-500.0,0.00019359,2]
[327516607,1716144646785,-500.0,0.00019359,2]
[327516609,1716144646794,-595.17000982,0.00019359,2]
[327516611,1716144646803,-500.0,0.00019359,2]
[327516613,1716144646812,-500.0,0.00019359,2]
[327516615,1716144646821,-500.0,0.00019359,2]
[327516617,1716144646831,-500.0,0.00019359,2]
[327516619,1716144646841,-595.17000982,0.00019359,2]
[327516621,1716144646851,-500.0,0.00019359,2]
[327516623,1716144646861,-595.17000982,0.00019359,2]
[327516625,1716144646870,-500.0,0.00019359,2]
[327516627,1716144646879,-595.17000982,0.00019359,2]